bitfinex/quotes_SOLUSD_20260309
["timestamp","ask_amount","ask_price","bid_price","bid_amount"]
[1773028648203,3.24784132,83.147,83.121,12.0306541]
[1773028649099,3.24784132,83.147,83.12,4.44842663]
[1773028649514,3.24784132,83.145,83.12,4.44842663]
[1773028651123,3.24784132,83.145,83.122,3.28333081]
[1773028651720,12.02732608,83.144,83.122,3.28333081]
[1773028652122,15.2751674,83.144,83.122,3.28333081]
[1773028652423,3.24784132,83.143,83.122,3.28333081]
[1773028653226,3.24784132,83.143,83.124,3.32144716]
[1773028653822,3.24784132,83.143,83.13,4.44842663]
[1773028654411,3.23629567,83.148,83.13,4.44842663]
[1773028654618,0.2,83.16,83.141,3.32144716]
[1773028654831,15.25942817,83.173,83.151,3.32144716]
[1773028655027,3.23629567,83.172,83.15,4.44842663]
[1773028655831,3.23629567,83.17,83.15,4.44842663]
[1773028657531,3.23629567,83.17,83.125,30.07518796]
[1773028657730,3.23629567,83.17,83.123,3.32144716]
[1773028657731,3.23629567,83.159,83.13,4.44842663]
[1773028658227,3.23629567,83.157,83.121,12.03055459]
[1773028658428,3.23629567,83.157,83.13,4.44842663]
[1773028659529,3.23629567,83.155,83.131,12.02920691]
[1773028659728,3.23629567,83.155,83.14,4.44842663]
[1773028659934,12.0231325,83.173,83.141,3.32144716]
[1773028660126,3.23629567,83.172,83.141,3.32144716]
[1773028660324,3.23629567,83.169,83.131,12.02920691]
[1773028661121,3.23629567,83.169,83.132,3.32144716]
[1773028661413,3.23629567,83.167,83.14,4.44842663]
[1773028662230,3.23629567,83.167,83.132,3.32144716]
[1773028663022,3.23629567,83.167,83.13,4.44842663]
[1773028664329,3.23629567,83.159,83.109,3.32144716]
[1773028664517,3.23629567,83.156,83.121,3.32144716]
[1773028664717,3.23629567,83.154,83.121,3.32144716]
[1773028667936,4.44842663,83.15,83.117,12.03121863]
[1773028668139,3.23629567,83.149,83.111,12.03210164]
[1773028668536,3.23629567,83.149,83.112,3.32144716]
[1773028669125,3.23629567,83.149,83.11,4.44842663]
[1773028669126,3.23629567,83.149,83.121,3.32144716]
[1773028669322,3.23629567,83.152,83.121,3.32144716]
[1773028669738,3.23629567,83.152,83.13,7.76987379]
[1773028669938,3.23629567,83.168,83.134,3.32144716]
[1773028670137,4.44842663,83.17,83.135,3.32144716]
[1773028670138,3.23629567,83.165,83.135,3.32144716]
[1773028673030,3.23629567,83.165,83.137,3.32144716]
[1773028673234,3.23629567,83.163,83.14,4.44842663]
[1773028673534,3.23629567,83.169,83.141,3.32144716]
[1773028673734,3.23629567,83.169,83.15,4.44842663]
[1773028673949,3.23629567,83.169,83.146,3.32144716]
[1773028676446,3.23629567,83.167,83.141,3.32144716]
[1773028676842,7.35010131,83.174,83.151,3.32144716]
[1773028677042,7.35010131,83.174,83.161,3.32144716]
[1773028677352,3.23629567,83.184,83.161,3.32144716]
[1773028677832,15.25832211,83.181,83.161,3.32144716]
[1773028679945,3.23629567,83.18,83.161,3.32144716]
[1773028681052,0.759,83.212,83.125,0.28432314]
[1773028681053,3.23629567,83.206,83.171,3.32144716]
[1773028682237,3.23629567,83.204,83.173,3.32144716]
[1773028682852,3.23629567,83.199,83.173,3.32144716]
[1773028683255,3.23629567,83.199,83.166,3.19335687]
[1773028684257,3.2258416,83.197,83.162,3.19335687]
[1773028684635,3.2258416,83.189,83.162,3.19335687]
[1773028684832,3.2258416,83.189,83.151,3.19335687]
[1773028685460,3.2258416,83.179,83.151,3.19335687]
[1773028685863,3.2258416,83.169,83.13,34.51404938]
[1773028686552,3.2258416,83.169,83.14,4.44093855]
[1773028688062,15.24956483,83.169,83.143,3.19335687]
[1773028688864,3.22311409,83.168,83.14,4.44093855]
[1773028689082,3.22311409,83.168,83.141,3.20892543]
[1773028689965,30.05602442,83.178,83.141,15.23655104]
[1773028689966,12.0239999,83.167,83.141,15.23655104]
[1773028690165,3.22311409,83.166,83.142,3.20892543]
[1773028690546,3.22311409,83.172,83.142,3.20892543]
[1773028692067,3.22311409,83.17,83.144,3.20892543]
[1773028693751,15.24571554,83.177,83.144,3.20892543]
[1773028693952,3.22311409,83.174,83.146,3.20892543]
[1773028694276,3.22311409,83.174,83.145,12.02718143]
[1773028694455,3.22311409,83.169,83.145,12.02718143]
[1773028695057,3.22311409,83.169,83.145,15.23610686]
[1773028695462,3.22311409,83.169,83.146,3.20892543]
[1773028696651,3.22311409,83.167,83.146,3.20892543]
[1773028697849,3.22311409,83.167,83.147,15.23581756]
[1773028698054,3.22311409,83.167,83.148,3.20892543]
[1773028700174,3.22311409,83.165,83.141,3.20892543]
[1773028700558,3.22311409,83.179,83.143,3.20892543]
[1773028700873,3.22311409,83.178,83.143,3.20892543]
[1773028704482,3.22311409,83.176,83.143,3.20892543]
[1773028707568,3.22311409,83.174,83.143,3.20892543]
[1773028708371,3.22311409,83.174,83.145,3.20892543]
[1773028709794,3.22311409,83.174,83.147,3.20892543]
[1773028709985,12.0231325,83.173,83.147,3.20892543]
[1773028710164,27.02409421,83.229,83.151,3.20892543]
[1773028710165,3.22311409,83.18,83.151,3.20892543]
[1773028712584,3.22311409,83.178,83.141,3.20892543]
[1773028713591,3.09633408,83.176,83.142,3.06308453]
[1773028716570,3.09633408,83.174,83.144,3.06308453]
[1773028719593,3.09633408,83.174,83.143,42.09614759]
[1773028719594,3.09633408,83.174,83.146,3.06308453]
[1773028721478,3.09633408,83.173,83.145,12.02718143]
[1773028721678,3.09633408,83.173,83.143,30.06867685]
[1773028721993,3.09633408,83.173,83.144,3.06308453]
[1773028722775,3.09633408,83.173,83.146,3.06308453]
[1773028723104,12.02327706,83.172,83.146,3.06308453]
[1773028723400,3.09633408,83.169,83.141,12.02769657]
[1773028724285,3.09633408,83.159,83.141,12.02769657]
[1773028724798,3.09633408,83.159,83.135,3.06308453]
[1773028725696,12.02478777,83.162,83.115,60.44157521]
[1773028725697,3.09633408,83.157,83.129,3.06308453]
[1773028725884,3.09633408,83.157,83.13,4.44093855]
[1773028726075,3.09633408,83.157,83.131,3.06308453]
[1773028726989,3.09633408,83.157,83.133,3.06308453]
[1773028727888,3.09633408,83.157,83.135,3.06308453]
[1773028728195,3.09633408,83.157,83.137,3.06308453]
[1773028730390,3.09633408,83.158,83.131,3.06308453]
[1773028731396,3.09633408,83.168,83.14,4.44093855]
[1773028731698,3.09633408,83.168,83.141,3.06308453]
[1773028732792,3.09633408,83.166,83.142,15.09069993]
[1773028733498,3.09633408,83.166,83.143,3.06308453]
[1773028736801,3.09633408,83.166,83.145,3.06308453]
[1773028737594,3.09633408,83.164,83.145,3.06308453]
[1773028738395,3.09633408,83.164,83.137,12.02833009]
[1773028738605,3.09633408,83.164,83.131,3.06308453]
[1773028738899,3.69383402,83.193,83.143,3.06308453]
[1773028738900,3.09633408,83.169,83.143,3.06308453]
[1773028739102,3.97815716,83.193,83.142,12.0276154]
[1773028739103,3.09633408,83.19,83.161,3.06308453]
[1773028739285,3.09633408,83.19,83.171,3.06308453]
[1773028739887,3.09633408,83.19,83.171,0.54230852]
[1773028740097,3.09633408,83.19,83.17,4.44093855]
[1773028740299,3.09633408,83.19,83.16,4.44093855]
[1773028741905,3.09633408,83.188,83.163,1.88981846]
[1773028742804,10.62584214,83.194,83.18,4.44093855]
[1773028742983,0.2,83.21,83.181,1.89400592]
[1773028743317,0.2,83.21,83.201,2.52363933]
[1773028743483,0.2,83.23,83.201,2.52363933]
[1773028743888,12.01546534,83.227,83.2,4.44093855]
[1773028744207,12.01546534,83.227,83.19,4.44093855]
[1773028744787,4.44093855,83.22,83.19,4.44093855]
[1773028745106,3.14969925,83.226,83.19,4.44093855]
[1773028745600,3.14969925,83.226,83.19,4.43784556]
[1773028746491,3.14969925,83.224,83.191,12.02053106]
[1773028749099,3.3046486,83.222,83.191,12.02053106]
[1773028751191,3.3046486,83.22,83.19,4.43784556]
[1773028751916,3.3046486,83.219,83.19,4.43784556]
[1773028753985,3.3046486,83.219,83.165,0.28432314]
[1773028753986,3.3046486,83.217,83.18,4.43784556]
[1773028754187,3.3046486,83.217,83.181,2.55201439]
[1773028754588,3.3046486,83.217,83.181,14.57399056]
[1773028755605,3.3046486,83.209,83.171,2.55644513]
[1773028755903,3.3046486,83.197,83.166,12.02413875]
[1773028756309,3.3046486,83.197,83.166,14.58058388]
[1773028756693,3.3046486,83.197,83.166,12.02413875]
[1773028757709,3.3046486,83.195,83.166,2.56070595]
[1773028760792,3.3046486,83.193,83.162,2.56697554]
[1773028763905,3.3046486,83.189,83.151,2.5730406]
[1773028764126,3.3046486,83.189,83.161,2.5730406]
[1773028766197,3.97815716,83.213,83.16,4.43784556]
[1773028766198,4.43784556,83.21,83.18,4.43784556]
[1773028766411,3.3046486,83.209,83.18,4.43784556]
[1773028766994,3.3046486,83.209,83.176,2.57697966]
[1773028767399,3.3046486,83.199,83.164,2.57890387]
[1773028768626,3.3046486,83.189,83.162,12.02472283]
[1773028769119,3.3046486,83.189,83.152,2.58275332]
[1773028770610,3.3046486,83.187,83.153,2.58647038]
[1773028771323,3.3046486,83.187,83.152,12.02605652]
[1773028771909,3.3046486,83.187,83.161,2.58834175]
[1773028772728,12.02096456,83.307,83.171,2.59018639]
[1773028772729,3.3046486,83.211,83.171,2.59018639]
[1773028772931,3.2069817,83.209,83.18,4.43784556]
[1773028773237,3.2069817,83.199,83.164,2.59196481]
[1773028774920,3.2069817,83.197,83.165,12.02428906]
[1773028777430,3.2069817,83.195,83.165,2.59891613]
[1773028779423,4.43784556,83.19,83.156,12.02558554]
[1773028779632,3.2069817,83.189,83.156,12.02558554]
[1773028780006,3.2069817,83.189,83.157,2.60398272]
[1773028780426,3.2069817,83.189,83.161,2.60557311]
[1773028782826,3.2069817,83.187,83.162,12.02472283]
[1773028784524,3.2069817,83.187,83.161,2.60557311]
[1773028784525,3.2069817,83.187,83.16,4.43784556]
[1773028784723,3.2069817,83.187,83.161,12.02486742]
[1773028785628,3.2069817,83.185,83.161,12.02486742]
[1773028787032,3.2069817,83.185,83.161,14.63973665]
[1773028787236,3.2069817,83.185,83.162,2.61486923]
[1773028788117,3.2069817,83.185,83.163,12.02457823]
[1773028788938,3.2069817,83.183,83.16,4.43784556]
[1773028789127,3.2069817,83.183,83.159,12.02513956]
[1773028790940,3.2069817,83.183,83.159,2.62084758]
[1773028791238,3.2069817,83.181,83.159,2.62084758]
[1773028792738,3.2069817,83.181,83.16,12.02501202]
[1773028792943,3.2069817,83.179,83.16,12.02501202]
[1773028793638,3.2069817,83.179,83.161,2.62507916]
[1773028799441,3.2069817,83.179,83.152,30.06521469]
[1773028800248,3.2069817,83.179,83.153,2.63319437]
[1773028801146,12.0221207,83.18,83.153,2.63319437]
[1773028801332,3.2069817,83.185,83.16,4.43784556]
[1773028801537,3.2069817,83.183,83.155,2.63571369]
[1773028802951,4.43784556,83.22,83.171,2.63698372]
[1773028803144,3.29624234,83.217,83.191,2.63823483]
[1773028803656,3.29624234,83.215,83.192,14.65983952]
[1773028803862,7.52999846,83.218,83.193,2.63945295]
[1773028804049,0.2,83.23,83.201,2.63945295]
[1773028804225,0.2,83.23,83.211,2.63945295]
[1773028804426,0.2,83.24,83.221,2.63945295]
[1773028804626,0.2,83.25,83.231,2.44066692]
[1773028804840,0.2,83.25,83.192,46.89612869]
[1773028804841,3.29624234,83.249,83.201,2.44066692]
[1773028805040,0.2,83.25,83.231,2.44066692]
[1773028805449,4.63784556,83.27,83.2,4.43784556]
[1773028805450,0.2,83.27,83.242,2.44066692]
[1773028805648,3.29624234,83.284,83.261,1.08201955]
[1773028805832,3.29624234,83.284,83.233,42.05062895]
[1773028805833,3.29624234,83.269,83.234,0.88201955]
[1773028806550,3.29624234,83.269,83.24,4.43784556]
[1773028806740,3.29624234,83.279,83.25,4.43784556]
[1773028806942,3.29624234,83.279,83.248,0.88456853]
[1773028807453,3.29624234,83.269,83.241,0.88456853]
[1773028807625,3.29624234,83.269,83.242,12.01316643]
[1773028808032,12.00884567,83.272,83.241,0.88456853]
[1773028808033,3.29624234,83.267,83.241,0.88456853]
[1773028808741,3.29624234,83.267,83.243,0.89200205]
[1773028809235,3.29624234,83.267,83.242,12.01316643]
[1773028809236,3.21822241,83.277,83.242,12.01316643]
[1773028809432,3.21822241,83.277,83.243,0.89200205]
[1773028809955,3.21822241,83.269,83.221,0.89439374]
[1773028810143,3.21822241,83.269,83.23,5.32726444]
[1773028810345,3.21822241,83.259,83.221,12.91059157]
[1773028810533,3.21822241,83.259,83.222,0.89439374]
[1773028811062,3.21822241,83.249,83.221,12.01619783]
[1773028813059,3.21822241,83.247,83.212,0.89505439]
[1773028815733,3.21822241,83.247,83.213,12.01735305]
[1773028816435,3.21822241,83.247,83.213,12.90990774]
[1773028816954,3.21822241,83.239,83.213,12.01735305]
[1773028817754,3.21822241,83.239,83.214,0.89088685]
[1773028819860,3.21822241,83.239,83.216,0.88930054]
[1773028820363,3.21822241,83.249,83.216,0.88930054]
[1773028820767,3.21822241,83.249,83.215,42.0597248]
[1773028820768,12.01130626,83.255,83.221,0.8885152]
[1773028820978,165.6,83.28,83.24,4.4328707]
[1773028821141,3.21822241,83.275,83.241,0.8885152]
[1773028821343,3.21822241,83.275,83.25,4.4328707]
[1773028821651,1e-08,83.29,83.271,0.88771197]
[1773028821845,1e-08,83.29,83.245,0.28432314]
[1773028821846,0.2,83.31,83.281,0.88771197]
[1773028822055,0.2,83.31,83.29,4.4328707]
[1773028822257,0.2,83.31,83.272,42.03093476]
[1773028822258,3.21822241,83.308,83.272,12.0088385]
[1773028822458,3.21822241,83.289,83.26,4.4328707]
[1773028822656,3.21822241,83.289,83.251,0.88692135]
[1773028823366,3.21822241,83.279,83.241,12.01331074]
[1773028823543,3.21822241,83.279,83.241,42.9327434]
[1773028823843,3.21822241,83.279,83.243,12.01302211]
[1773028824039,3.21822241,83.277,83.243,12.01302211]
[1773028825140,3.21822241,83.279,83.25,4.4328707]
[1773028825345,3.21822241,83.269,83.237,12.01376966]
[1773028825761,3.21822241,83.269,83.24,4.4328707]
[1773028826542,3.21822241,83.269,83.241,12.01331074]
[1773028827554,3.21822241,83.269,83.241,42.04658761]
[1773028827753,3.21822241,83.267,83.241,12.01331074]
[1773028829452,12.0087195,83.273,83.25,4.4328707]
[1773028829661,3.21822241,83.272,83.25,4.4328707]
[1773028830167,2.12248364,83.272,83.25,4.4328707]
[1773028831165,12.0088385,83.272,83.25,4.4328707]
[1773028831362,4.4328707,83.27,83.24,4.4328707]
[1773028831567,12.00927115,83.269,83.24,4.4328707]
[1773028831762,0.28432314,83.298,83.25,4.4328707]
[1773028832070,4.4328707,83.28,83.25,4.4328707]
[1773028832259,3.21822241,83.279,83.25,4.4328707]
[1773028834068,4.4328707,83.28,83.25,4.4328707]
[1773028834069,3.24318727,83.277,83.25,4.4328707]
[1773028834645,3.24318727,83.277,83.249,12.01207081]
[1773028835054,3.24318727,83.277,83.25,4.4328707]
[1773028835255,3.24318727,83.277,83.241,1.97838204]
[1773028835572,3.24318727,83.269,83.24,4.4328707]
[1773028835963,3.24318727,83.269,83.239,12.01348243]
[1773028835964,3.24318727,83.249,83.221,12.01619783]
[1773028837566,3.24318727,83.247,83.22,4.4328707]
[1773028839968,4.4328707,83.26,83.22,4.4328707]
[1773028839969,3.24318727,83.245,83.22,4.4328707]
[1773028840171,3.24318727,83.239,83.21,4.4328707]
[1773028840869,3.24318727,83.239,83.211,1.9790769]
[1773028843155,3.24318727,83.239,83.22,4.4328707]
[1773028843973,3.24318727,83.237,83.212,12.01749747]
[1773028846374,3.24318727,83.237,83.214,13.99685627]
[1773028846582,3.24318727,83.256,83.23,4.4328707]
[1773028846771,3.24318727,83.256,83.22,4.4328707]
[1773028846964,3.24318727,83.254,83.23,4.4328707]
[1773028847358,3.24318727,83.254,83.22,4.4328707]
[1773028848266,3.24318727,83.249,83.207,1.97989403]
[1773028848478,3.24318727,83.249,83.22,4.4328707]
[1773028849984,3.24318727,83.245,83.22,4.4328707]
[1773028851482,3.24318727,83.243,83.22,4.4328707]
[1773028853475,3.24318727,83.237,83.2,4.4328707]
[1773028853778,3.24318727,83.237,83.2,6.41360708]
[1773028853981,3.24318727,83.229,83.193,30.05035994]
[1773028854285,3.24318727,83.209,83.181,30.05492156]
[1773028854483,3.24318727,83.209,83.2,4.4328707]
[1773028854665,3.52751041,83.229,83.2,4.4328707]
[1773028854865,3.52751041,83.229,83.186,1.98073638]
[1773028854866,3.52751041,83.229,83.19,4.4328707]
[1773028855264,3.52751041,83.229,83.196,12.01980864]
[1773028855483,3.24318727,83.226,83.196,12.01980864]
[1773028855676,3.24318727,83.224,83.196,12.01980864]
[1773028856792,3.24318727,83.222,83.196,12.01980864]
[1773028857886,3.24318727,83.22,83.196,12.01980864]
[1773028860294,12.01648661,83.219,83.196,12.01980864]
[1773028860482,3.24318727,83.218,83.196,12.01980864]
[1773028861391,4.4328707,83.28,83.211,1.98150584]
[1773028861392,3.24318727,83.248,83.211,1.98150584]
[1773028861597,3.24318727,83.248,83.22,4.4328707]
[1773028862193,3.24318727,83.248,83.21,4.4328707]
[1773028862401,3.24318727,83.246,83.211,12.01764189]
[1773028862777,3.24318727,83.246,83.211,13.99927145]
[1773028864080,3.37139399,83.244,83.212,1.98180108]
[1773028864900,12.01273349,83.245,83.207,12.01819071]
[1773028864901,3.37139399,83.239,83.207,12.01819071]
[1773028865405,3.37139399,83.239,83.211,1.9819045]
[1773028866800,3.37139399,83.239,83.213,1.9821005]
[1773028869007,3.09773733,83.219,83.192,12.02035541]
[1773028869216,3.09773733,83.219,83.191,12.02051035]
[1773028869422,3.09773733,83.209,83.191,12.02051035]
[1773028869812,3.09773733,83.209,83.18,4.4396169]
[1773028870213,3.09773733,83.209,83.19,12.0206659]
[1773028870623,3.09773733,83.209,83.184,12.02152554]
[1773028870835,3.09773733,83.209,83.179,1.98235051]
[1773028870836,3.09773733,83.209,83.18,34.49486486]
[1773028871501,3.09773733,83.209,83.191,12.02040709]
[1773028871701,3.09773733,83.199,83.161,15.16154159]
[1773028871906,3.09773733,83.189,83.162,3.13667417]
[1773028872624,3.09773733,83.179,83.154,3.13667417]
[1773028872803,3.09773733,83.179,83.155,12.02573507]
[1773028873006,3.09773733,83.179,83.156,3.13667417]
[1773028873207,4.4396169,83.18,83.156,3.13667417]
[1773028873410,12.02104043,83.188,83.156,3.13667417]
[1773028873910,12.02104043,83.188,83.155,12.02573507]
[1773028873911,7.53735423,83.19,83.161,3.13667417]
[1773028874125,3.09773733,83.188,83.161,3.13667417]
[1773028874916,15.11884639,83.187,83.163,3.13667417]
[1773028875327,4.4396169,83.21,83.18,4.4396169]
[1773028875626,3.09773733,83.238,83.201,3.13667417]
[1773028875923,12.01359939,83.239,83.175,0.28432314]
[1773028875924,12.01359939,83.239,83.211,3.13667417]
[1773028876132,3.09773733,83.238,83.211,3.13667417]
[1773028876424,3.09773733,83.229,83.203,3.13667417]
[1773028877126,3.09773733,83.227,83.203,15.15543278]
[1773028878128,3.09773733,83.219,83.197,12.01954632]
[1773028879130,15.11321326,83.226,83.198,3.13667417]
[1773028879826,3.09773733,83.225,83.198,3.13667417]
[1773028880405,12.01547593,83.226,83.189,30.05174182]
[1773028880406,7.53735423,83.23,83.201,3.13667417]
[1773028880610,3.09773733,83.229,83.201,3.13667417]
[1773028880811,12.01504283,83.229,83.201,3.13667417]
[1773028881007,3.09773733,83.228,83.201,3.13667417]
[1773028882126,3.09773733,83.226,83.202,12.01894185]
[1773028882427,3.09773733,83.226,83.203,3.13667417]
[1773028882934,3.09773733,83.238,83.203,3.13667417]
[1773028883140,3.09773733,83.229,83.197,12.01960138]
[1773028883334,3.09773733,83.229,83.198,3.13667417]
[1773028884421,4.4396169,83.24,83.211,3.13667417]
[1773028884620,3.09773733,83.239,83.211,3.13667417]
[1773028885413,3.09773733,83.237,83.212,12.01749747]
[1773028885630,3.09773733,83.237,83.212,15.15417164]
[1773028886323,3.09773733,83.237,83.213,3.13667417]
[1773028887137,15.11176971,83.236,83.213,3.13667417]
[1773028887645,3.09773733,83.249,83.215,3.13667417]
[1773028888634,3.09773733,83.248,83.217,3.13667417]
[1773028889214,3.09773733,83.239,83.216,12.01691982]
[1773028890423,3.09773733,83.239,83.213,3.13667417]
[1773028890824,3.09773733,83.237,83.213,3.13667417]
[1773028891238,3.09773733,83.229,83.2,3.13667417]
[1773028891542,3.09773733,83.219,83.191,3.13667417]
[1773028892744,3.09773733,83.218,83.192,12.02038657]
[1773028894638,3.09773733,83.218,83.181,3.12650547]
[1773028894844,3.29138994,83.209,83.182,12.02172362]
[1773028895046,3.29138994,83.209,83.175,3.12650547]
[1773028895247,3.29138994,83.199,83.169,3.12650547]
[1773028895741,4.4396169,83.22,83.191,3.12650547]
[1773028895932,12.01576468,83.224,83.191,3.12650547]
[1773028896133,12.01512094,83.229,83.191,3.12650547]
[1773028897643,3.29138994,83.228,83.193,3.12650547]
[1773028898346,3.29138994,83.219,83.193,3.12650547]
[1773028899954,3.29138994,83.217,83.193,3.12650547]
[1773028900158,3.29138994,83.217,83.194,12.0200976]
[1773028900354,3.29138994,83.217,83.194,15.14660307]
[1773028900550,3.29138994,83.217,83.194,3.12650547]
[1773028901358,3.29138994,83.223,83.194,3.12650547]
[1773028901561,19.74602862,83.23,83.194,3.12650547]
[1773028901857,19.74602862,83.23,83.195,12.01995312]
[1773028901858,3.29138994,83.229,83.195,12.01995312]
[1773028902037,3.29138994,83.229,83.196,3.12650547]
[1773028902940,3.29138994,83.245,83.211,3.12650547]
[1773028903246,48.19665476,83.34,83.221,3.12650547]
[1773028903247,3.29138994,83.259,83.221,3.12650547]
[1773028903449,4.4396169,83.26,83.23,4.4396169]
[1773028903654,12.01070306,83.26,83.231,3.12650547]
[1773028903848,12.29417121,83.265,83.233,3.12650547]
[1773028904161,4.4396169,83.26,83.233,3.12650547]
[1773028905465,12.01071355,83.259,83.233,3.12650547]
[1773028905648,3.29138994,83.258,83.233,3.12650547]
[1773028906543,3.29138994,83.258,83.235,3.12650547]
[1773028906744,0.28432314,83.273,83.234,12.01432107]
[1773028906745,3.29138994,83.282,83.241,3.12650547]
[1773028906954,12.00754073,83.281,83.241,3.12650547]
[1773028907262,12.00754073,83.281,83.215,60.08513354]
[1773028907263,3.29138994,83.259,83.23,12.0148844]
[1773028907460,3.29138994,83.257,83.23,15.14138987]
[1773028907766,4.4396169,83.26,83.231,3.12650547]
[1773028908345,12.01014739,83.263,83.231,3.12650547]
[1773028908558,4.4396169,83.26,83.231,3.12650547]
[1773028908768,3.29138994,83.266,83.231,3.12650547]
[1773028908965,12.00984807,83.265,83.231,3.12650547]
[1773028909763,3.29138994,83.265,83.233,3.12650547]
[1773028910259,3.29138994,83.268,83.233,3.12650547]
[1773028911852,12.0095596,83.267,83.235,3.12650547]
[1773028912253,3.29138994,83.266,83.235,3.12650547]
[1773028914770,12.00984807,83.265,83.241,3.12650547]
[1773028915568,3.29138994,83.264,83.237,3.12650547]
[1773028916981,3.29138994,83.264,83.239,3.12650547]
[1773028917162,4.4396169,83.27,83.239,3.12650547]
[1773028917163,3.29138994,83.269,83.239,3.12650547]
[1773028918073,3.29138994,83.269,83.241,3.12650547]
[1773028919072,3.29138994,83.268,83.235,3.12650547]
[1773028919272,3.29138994,83.259,83.235,3.12650547]
[1773028919461,3.29138994,83.268,83.235,3.12650547]
[1773028920774,12.00868211,83.274,83.241,3.12650547]
[1773028920979,3.29138994,83.273,83.241,3.12650547]
[1773028921164,3.29138994,83.273,83.243,3.12650547]
[1773028921673,15.30019825,83.273,83.243,3.12650547]
[1773028922579,7.73100684,83.27,83.243,3.12650547]
[1773028922767,15.29953261,83.277,83.243,3.12650547]
[1773028922967,3.29138994,83.277,83.251,3.28437533]
[1773028923169,0.28432314,83.293,83.216,0.28432314]
[1773028923170,12.0055239,83.295,83.261,3.28437533]
[1773028923373,3.26876833,83.314,83.281,3.28437533]
[1773028923670,3.26876833,83.308,83.271,3.28437533]
[1773028925075,0.2,83.31,83.281,3.28437533]
[1773028925281,0.2,83.31,83.283,3.28437533]
[1773028926377,12.00350502,83.309,83.283,3.28437533]
[1773028926590,7.90838523,83.31,83.283,3.28437533]
[1773028926888,12.00350502,83.309,83.283,3.28437533]
[1773028927068,4.6396169,83.31,83.283,3.28437533]
[1773028927269,0.2,83.31,83.285,3.28437533]
[1773028928582,0.2,83.31,83.291,3.1238633]
[1773028929280,0.2,83.31,83.293,3.1238633]
[1773028930270,4.6270786,83.33,83.292,12.00595495]
[1773028930271,3.28275914,83.351,83.303,3.1238633]
[1773028930480,3.28275914,83.351,83.321,3.1238633]
[1773028931268,3.28275914,83.351,83.331,3.1238633]
[1773028931477,11.99661729,83.357,83.331,3.1238633]
[1773028931891,3.28275914,83.349,83.317,12.00234273]
[1773028932188,4.4270786,83.35,83.31,4.4270786]
[1773028932189,3.28275914,83.348,83.311,3.1238633]
[1773028932885,3.28275914,83.329,83.297,3.1238633]
[1773028933093,3.28275914,83.319,83.297,3.1238633]
[1773028933297,3.28275914,83.317,83.29,3.1238633]
[1773028934493,3.28275914,83.317,83.291,12.00609909]
[1773028935178,3.28275914,83.317,83.292,3.1238633]
[1773028935492,3.28275914,83.317,83.294,3.1238633]
[1773028936295,3.28275914,83.315,83.288,3.1238633]
[1773028936481,3.28275914,83.315,83.291,3.1238633]
[1773028936799,15.2845354,83.321,83.291,3.1238633]
[1773028937006,11.99918405,83.339,83.311,3.1238633]
[1773028937307,15.2812152,83.345,83.32,4.4270786]
[1773028937506,15.2812152,83.345,83.321,3.1238633]
[1773028937807,3.28275914,83.344,83.321,3.1238633]
[1773028938100,3.28275914,83.339,83.308,12.00364114]
[1773028938410,3.28275914,83.339,83.31,7.5509419]
[1773028938789,3.28275914,83.339,83.31,3.1238633]
[1773028938989,3.28275914,83.339,83.303,15.12814425]
[1773028939200,3.28275914,83.339,83.304,3.1238633]
[1773028939414,3.28275914,83.337,83.304,3.1238633]
[1773028940193,3.28275914,83.329,83.302,12.00437308]
[1773028940698,3.28275914,83.329,83.296,12.00531233]
[1773028941215,3.28275914,83.337,83.311,3.1238633]
[1773028942101,3.28275914,83.337,83.312,12.00307278]
[1773028942316,11.85621133,83.33,83.313,3.1238633]
[1773028942608,11.99961601,83.336,83.313,3.1238633]
[1773028942901,3.28275914,83.335,83.313,3.1238633]
[1773028943101,3.28275914,83.335,83.301,3.1238633]
[1773028943306,3.28275914,83.335,83.302,3.1238633]
[1773028943910,3.28275914,83.329,83.3,11.85621133]
[1773028944109,3.28275914,83.319,83.288,3.1238633]
[1773028944288,3.28275914,83.317,83.291,12.00607301]
[1773028945414,3.28275914,83.317,83.292,3.1238633]
[1773028947494,3.28275914,83.317,83.294,3.1238633]
[1773028948029,3.28275914,83.347,83.311,3.1238633]
[1773028948213,11.85621133,83.35,83.321,3.1238633]
[1773028948214,11.99774442,83.349,83.321,3.1238633]
[1773028948801,3.28275914,83.354,83.331,3.1238633]
[1773028948802,11.99716866,83.353,83.331,3.1238633]
[1773028949311,19.52683653,83.359,83.331,3.1238633]
[1773028949512,19.52683653,83.359,83.332,3.1238633]
[1773028949890,0.12427597,83.36,83.332,3.1238633]
[1773028950217,0.12427597,83.36,83.341,3.1238633]
[1773028950395,3.28275914,83.359,83.331,12.00022535]
[1773028951209,0.12427597,83.36,83.332,3.1238633]
[1773028951616,0.12427597,83.36,83.334,3.1238633]
[1773028951835,3.28275914,83.359,83.334,3.1238633]
[1773028952003,0.12427597,83.36,83.334,3.1238633]
[1773028953120,0.12427597,83.36,83.341,3.38136962]
[1773028953704,0.12427597,83.36,83.338,11.9992859]
[1773028953905,0.12427597,83.36,83.34,11.85621133]
[1773028954819,0.12427597,83.36,83.338,11.9992859]
[1773028955022,3.17617473,83.349,83.32,15.23758095]